[Event "Titled Tuesday Blitz November 07 Late 2023"]
[White "Yushko, Olga"]
[Black "Tikhonov, Viacheslav"]
[WhiteFideId "14114500"]
[BlackFideId "44196407"]
[WhiteElo "2107"]
[BlackElo "2530"]
[Result "0-1"]
[Round "1"]
[TimeControl "180+1"]
[Date "2023.11.07"]
[WhiteClock "0:00:28"]
[BlackClock "0:00:28"]
[Board "162"]

1. d4 {[%clk 0:02:57]}  d5 {[%clk 0:02:58]} 2. c4 {[%clk 0:02:57]}  Nc6 {[%clk 0:02:55]} 3. Nf3 {[%clk 0:02:57]}  Bg4 {[%clk 0:02:54]} 4. Nc3 {[%clk 0:02:56]}  e6 {[%clk 0:02:52]} 5. Bg5 {[%clk 0:02:54]}  Be7 {[%clk 0:02:51]} 6. Bxe7 {[%clk 0:02:54]}  Ngxe7 {[%clk 0:02:52]} 7. e3 {[%clk 0:02:55]}  O-O {[%clk 0:02:50]} 8. Be2 {[%clk 0:02:55]}  dxc4 {[%clk 0:02:47]} 9. Bxc4 {[%clk 0:02:56]}  Nd5 {[%clk 0:02:47]} 10. O-O {[%clk 0:02:55]}  Nce7 {[%clk 0:02:46]} 11. Be2 {[%clk 0:02:54]}  c6 {[%clk 0:02:46]} 12. h3 {[%clk 0:02:52]}  Bh5 {[%clk 0:02:45]} 13. Rc1 {[%clk 0:02:52]}  Rc8 {[%clk 0:02:42]} 14. Ne4 {[%clk 0:02:52]}  Bg6 {[%clk 0:02:42]} 15. Nc5 {[%clk 0:02:51]}  Qc7 {[%clk 0:02:41]} 16. Ne5 {[%clk 0:02:49]}  Rfd8 {[%clk 0:02:39]} 17. Qa4 {[%clk 0:02:47]}  b6 {[%clk 0:02:35]} 18. Na6 {[%clk 0:02:42]}  Qb7 {[%clk 0:02:32]} 19. Nb4 {[%clk 0:02:21]}  Nxb4 {[%clk 0:02:30]} 20. Qxb4 {[%clk 0:02:22]}  a5 {[%clk 0:02:17]} 21. Qa4 {[%clk 0:02:22]}  Be4 {[%clk 0:02:09]} 22. f3 {[%clk 0:02:20]}  Bg6 {[%clk 0:02:08]} 23. Rfd1 {[%clk 0:02:20]}  Nd5 {[%clk 0:01:33]} 24. Kf2 {[%clk 0:02:19]}  Ne7 {[%clk 0:01:30]} 25. a3 {[%clk 0:02:14]}  Rc7 {[%clk 0:01:23]} 26. b4 {[%clk 0:02:14]}  axb4 {[%clk 0:01:23]} 27. axb4 {[%clk 0:02:12]}  Ra8 {[%clk 0:01:22]} 28. Qb3 {[%clk 0:02:12]}  b5 {[%clk 0:01:19]} 29. Bd3 {[%clk 0:02:08]}  Qb6 {[%clk 0:01:14]} 30. Bxg6 {[%clk 0:02:04]}  hxg6 {[%clk 0:01:15]} 31. Nd3 {[%clk 0:01:50]}  Rca7 {[%clk 0:01:12]} 32. Rc2 {[%clk 0:01:31]}  Ra3 {[%clk 0:01:10]} 33. Qb2 {[%clk 0:01:28]}  Nf5 {[%clk 0:01:10]} 34. g4 {[%clk 0:01:25]}  Ne7 {[%clk 0:01:08]} 35. Nc5 {[%clk 0:01:23]}  Nd5 {[%clk 0:01:06]} 36. e4 {[%clk 0:01:18]}  Nf4 {[%clk 0:01:04]} 37. Kg3 {[%clk 0:01:15]}  Qc7 {[%clk 0:00:58]} 38. e5 {[%clk 0:01:06]}  Nd5 {[%clk 0:00:58]} 39. Ne4 {[%clk 0:01:06]}  Ne3 {[%clk 0:00:57]} 40. Rdc1 {[%clk 0:01:01]}  Nxc2 {[%clk 0:00:57]} 41. Qxc2 {[%clk 0:01:01]}  Qb6 {[%clk 0:00:54]} 42. Qxc6 {[%clk 0:00:55]}  Qxd4 {[%clk 0:00:53]} 43. Qxb5 {[%clk 0:00:51]}  Qe3 {[%clk 0:00:45]} 44. Qc6 {[%clk 0:00:46]}  Qxf3+ {[%clk 0:00:44]} 45. Kh2 {[%clk 0:00:44]}  Qxh3+ {[%clk 0:00:42]} 46. Kg1 {[%clk 0:00:44]}  Qxg4+ {[%clk 0:00:41]} 47. Kf1 {[%clk 0:00:44]}  Qf4+ {[%clk 0:00:39]} 48. Nf2 {[%clk 0:00:44]}  Ra2 {[%clk 0:00:39]} 49. Qc5 {[%clk 0:00:40]}  Qf3 {[%clk 0:00:30]} 50. b5 {[%clk 0:00:36]}  Qf4 {[%clk 0:00:28]} 51. b6 {[%clk 0:00:35]}  Rxf2+ {[%clk 0:00:28]} 52. Qxf2 {[%clk 0:00:34]}  Qxc1+ {[%clk 0:00:28]} 53. Kg2 {[%clk 0:00:35]}  Qc6+ {[%clk 0:00:28]} 54. Kh2 {[%clk 0:00:28]}  Rb8 {[%clk 0:00:28]} 0-1


[Site "https://www.chess.com"]

[Event "Titled Tuesday Blitz November 07 Late 2023"]
[White "Sailer, Mike"]
[Black "elmusmolamas"]
[WhiteFideId "2012901"]
[WhiteElo "2065"]
[BlackElo "2523"]
[Result "1-0"]
[Round "1"]
[TimeControl "180+1"]
[Date "2023.11.07"]
[WhiteClock "0:00:11"]
[BlackClock "0:00:16"]
[Board "166"]

1. g3 {[%clk 0:02:58]}  h5 {[%clk 0:02:56]} 2. h4 {[%clk 0:02:57]}  Nf6 {[%clk 0:02:39]} 3. Bg2 {[%clk 0:02:56]}  c6 {[%clk 0:02:37]} 4. c4 {[%clk 0:02:51]}  e5 {[%clk 0:02:36]} 5. d4 {[%clk 0:02:47]}  e4 {[%clk 0:02:32]} 6. Nc3 {[%clk 0:02:43]}  d5 {[%clk 0:02:32]} 7. cxd5 {[%clk 0:02:32]}  cxd5 {[%clk 0:02:33]} 8. e3 {[%clk 0:02:21]}  Bg4 {[%clk 0:02:26]} 9. Qb3 {[%clk 0:02:17]}  Qd7 {[%clk 0:02:25]} 10. Nge2 {[%clk 0:02:14]}  Nc6 {[%clk 0:02:19]} 11. a3 {[%clk 0:02:13]}  Na5 {[%clk 0:02:11]} 12. Qb5 {[%clk 0:01:58]}  Qxb5 {[%clk 0:01:54]} 13. Nxb5 {[%clk 0:01:57]}  Kd7 {[%clk 0:01:55]} 14. Bd2 {[%clk 0:01:51]}  Nb3 {[%clk 0:01:54]} 15. Rb1 {[%clk 0:01:40]}  a6 {[%clk 0:01:54]} 16. Nbc3 {[%clk 0:01:38]}  b5 {[%clk 0:01:45]} 17. Nc1 {[%clk 0:01:36]}  Nxd2 {[%clk 0:01:37]} 18. Kxd2 {[%clk 0:01:36]}  b4 {[%clk 0:01:38]} 19. Na4 {[%clk 0:01:20]}  Rb8 {[%clk 0:01:33]} 20. Nb3 {[%clk 0:01:16]}  bxa3 {[%clk 0:01:05]} 21. Nbc5+ {[%clk 0:01:13]}  Bxc5 {[%clk 0:01:06]} 22. Nxc5+ {[%clk 0:01:12]}  Kd6 {[%clk 0:01:06]} 23. bxa3 {[%clk 0:01:08]}  a5 {[%clk 0:01:04]} 24. Rhc1 {[%clk 0:01:05]}  Rxb1 {[%clk 0:00:39]} 25. Rxb1 {[%clk 0:01:04]}  Kc6 {[%clk 0:00:40]} 26. Rb7 {[%clk 0:00:47]}  Nd7 {[%clk 0:00:27]} 27. Ra7 {[%clk 0:00:44]}  Kb6 {[%clk 0:00:15]} 28. Rxd7 {[%clk 0:00:29]}  Bxd7 {[%clk 0:00:14]} 29. Nxd7+ {[%clk 0:00:29]}  Kb5 {[%clk 0:00:15]} 30. Nc5 {[%clk 0:00:23]}  g5 {[%clk 0:00:12]} 31. Bf1+ {[%clk 0:00:23]}  Kc6 {[%clk 0:00:11]} 32. hxg5 {[%clk 0:00:20]}  Rg8 {[%clk 0:00:11]} 33. a4 {[%clk 0:00:15]}  Rxg5 {[%clk 0:00:11]} 34. Bb5+ {[%clk 0:00:15]}  Kc7 {[%clk 0:00:10]} 35. Nb3 {[%clk 0:00:09]}  Kb6 {[%clk 0:00:09]} 36. Nc5 {[%clk 0:00:08]}  h4 {[%clk 0:00:09]} 37. gxh4 {[%clk 0:00:08]}  Rh5 {[%clk 0:00:09]} 38. Be8 {[%clk 0:00:06]}  Rh8 {[%clk 0:00:05]} 39. Bxf7 {[%clk 0:00:05]}  Rf8 {[%clk 0:00:06]} 40. Bxd5 {[%clk 0:00:03]}  Rxf2+ {[%clk 0:00:06]} 41. Kc3 {[%clk 0:00:01]}  Rh2 {[%clk 0:00:07]} 42. Bxe4 {[%clk 0:00:02]}  Rxh4 {[%clk 0:00:07]} 43. Kd3 {[%clk 0:00:02]}  Rh2 {[%clk 0:00:08]} 44. Bd5 {[%clk 0:00:03]}  Ra2 {[%clk 0:00:08]} 45. Bc4 {[%clk 0:00:04]}  Rxa4 {[%clk 0:00:08]} 46. Nxa4+ {[%clk 0:00:04]}  Kc7 {[%clk 0:00:08]} 47. Nc3 {[%clk 0:00:04]}  Kd8 {[%clk 0:00:09]} 48. Bb3 {[%clk 0:00:04]}  a4 {[%clk 0:00:10]} 49. Kc4 {[%clk 0:00:05]}  a3 {[%clk 0:00:10]} 50. Ba2 {[%clk 0:00:05]}  Kc7 {[%clk 0:00:10]} 51. Kb3 {[%clk 0:00:05]}  Kb6 {[%clk 0:00:11]} 52. Kxa3 {[%clk 0:00:06]}  Kc7 {[%clk 0:00:11]} 53. Kb3 {[%clk 0:00:06]}  Kd8 {[%clk 0:00:12]} 54. Kc4 {[%clk 0:00:07]}  Ke7 {[%clk 0:00:13]} 55. Kc5 {[%clk 0:00:08]}  Kd8 {[%clk 0:00:14]} 56. d5 {[%clk 0:00:08]}  Ke7 {[%clk 0:00:15]} 57. Kc6 {[%clk 0:00:09]}  Kf8 {[%clk 0:00:16]} 58. Kc7 {[%clk 0:00:09]}  Kg7 {[%clk 0:00:17]} 59. d6 {[%clk 0:00:10]}  Kf6 {[%clk 0:00:18]} 60. d7 {[%clk 0:00:11]}  Kg5 {[%clk 0:00:16]} 61. d8=Q+ {[%clk 0:00:11]} 1-0


[Site "https://www.chess.com"]

[Event "Titled Tuesday Blitz November 07 Late 2023"]
[White "Roebers, Jan"]
[Black "Sulthankan"]
[WhiteFideId "1007815"]
[WhiteElo "2035"]
[BlackElo "2520"]
[Result "1-0"]
[Round "1"]
[TimeControl "180+1"]
[Date "2023.11.07"]
[WhiteClock "0:01:59"]
[BlackClock "0:00:39"]
[Board "168"]

1. e4 {[%clk 0:02:58]}  c5 {[%clk 0:02:59]} 2. d4 {[%clk 0:02:57]}  cxd4 {[%clk 0:02:59]} 3. c3 {[%clk 0:02:57]}  dxc3 {[%clk 0:03:00]} 4. Nxc3 {[%clk 0:02:57]}  e6 {[%clk 0:03:00]} 5. Nf3 {[%clk 0:02:56]}  Nc6 {[%clk 0:03:00]} 6. Bc4 {[%clk 0:02:55]}  a6 {[%clk 0:02:58]} 7. O-O {[%clk 0:02:54]}  b5 {[%clk 0:02:55]} 8. Bb3 {[%clk 0:02:54]}  Nge7 {[%clk 0:02:55]} 9. Bf4 {[%clk 0:02:50]}  Bb7 {[%clk 0:02:54]} 10. Qe2 {[%clk 0:02:49]}  Na5 {[%clk 0:02:47]} 11. e5 {[%clk 0:02:45]}  Ng6 {[%clk 0:02:33]} 12. Bg3 {[%clk 0:02:43]}  Be7 {[%clk 0:02:24]} 13. Bc2 {[%clk 0:02:39]}  O-O {[%clk 0:02:17]} 14. Rfd1 {[%clk 0:02:38]}  Rc8 {[%clk 0:02:07]} 15. Rac1 {[%clk 0:02:37]}  Qc7 {[%clk 0:01:45]} 16. h4 {[%clk 0:02:35]}  Bc5 {[%clk 0:01:35]} 17. h5 {[%clk 0:02:34]}  Ne7 {[%clk 0:01:35]} 18. Ne4 {[%clk 0:02:27]}  Qb6 {[%clk 0:01:29]} 19. Nxc5 {[%clk 0:02:20]}  Qxc5 {[%clk 0:01:18]} 20. Bxh7+ {[%clk 0:02:19]}  Kxh7 {[%clk 0:01:19]} 21. Rxc5 {[%clk 0:02:18]}  Rxc5 {[%clk 0:01:20]} 22. b4 {[%clk 0:02:15]}  Rc7 {[%clk 0:00:52]} 23. bxa5 {[%clk 0:02:13]}  Nf5 {[%clk 0:00:53]} 24. Nd4 {[%clk 0:02:08]}  Nh6 {[%clk 0:00:48]} 25. Bf4 {[%clk 0:02:05]}  Ng8 {[%clk 0:00:48]} 26. Qd3+ {[%clk 0:02:03]}  Kh8 {[%clk 0:00:49]} 27. Nf3 {[%clk 0:02:02]}  Bd5 {[%clk 0:00:47]} 28. Ng5 {[%clk 0:02:01]}  g6 {[%clk 0:00:46]} 29. hxg6 {[%clk 0:02:00]}  fxg6 {[%clk 0:00:39]} 30. Qh3+ {[%clk 0:01:59]} 1-0


[Site "https://www.chess.com"]

[Event "Titled Tuesday Blitz November 07 Late 2023"]
[White "kalxandria"]
[Black "Lima, Kleyton Alcantara"]
[BlackFideId "22718397"]
[WhiteElo "2003"]
[BlackElo "2517"]
[Result "0-1"]
[Round "1"]
[TimeControl "180+1"]
[Date "2023.11.07"]
[WhiteClock "0:00:08"]
[BlackClock "0:01:21"]
[Board "170"]

1. e4 {[%clk 0:03:00]}  c5 {[%clk 0:02:58]} 2. Nf3 {[%clk 0:02:59]}  d6 {[%clk 0:02:58]} 3. d4 {[%clk 0:02:58]}  cxd4 {[%clk 0:02:58]} 4. Nxd4 {[%clk 0:02:58]}  Nf6 {[%clk 0:02:59]} 5. Nc3 {[%clk 0:02:56]}  a6 {[%clk 0:03:00]} 6. Bg5 {[%clk 0:02:54]}  e6 {[%clk 0:02:59]} 7. f4 {[%clk 0:02:54]}  Be7 {[%clk 0:02:59]} 8. Qf3 {[%clk 0:02:52]}  Qc7 {[%clk 0:02:59]} 9. O-O-O {[%clk 0:02:50]}  Nbd7 {[%clk 0:02:59]} 10. g4 {[%clk 0:02:41]}  b5 {[%clk 0:02:57]} 11. Bxf6 {[%clk 0:02:38]}  Nxf6 {[%clk 0:02:58]} 12. g5 {[%clk 0:02:36]}  Nd7 {[%clk 0:02:53]} 13. f5 {[%clk 0:02:35]}  O-O {[%clk 0:02:54]} 14. f6 {[%clk 0:02:20]}  gxf6 {[%clk 0:02:53]} 15. gxf6 {[%clk 0:02:15]}  Nxf6 {[%clk 0:02:50]} 16. Rg1+ {[%clk 0:02:09]}  Kh8 {[%clk 0:02:50]} 17. Bd3 {[%clk 0:02:02]}  b4 {[%clk 0:02:16]} 18. Nce2 {[%clk 0:01:49]}  Bb7 {[%clk 0:02:15]} 19. Qe3 {[%clk 0:01:09]}  Rac8 {[%clk 0:02:03]} 20. Rg3 {[%clk 0:00:49]}  Rg8 {[%clk 0:01:50]} 21. Rdg1 {[%clk 0:00:47]}  Rxg3 {[%clk 0:01:33]} 22. Nxg3 {[%clk 0:00:47]}  Rg8 {[%clk 0:01:25]} 23. Rf1 {[%clk 0:00:32]}  Ng4 {[%clk 0:01:21]} 24. Qd2 {[%clk 0:00:08]}  Bg5 {[%clk 0:01:21]} 0-1


[Site "https://www.chess.com"]

[Event "Titled Tuesday Blitz November 07 Late 2023"]
[White "Ronka, Erik"]
[Black "Burke, Paul"]
[WhiteFideId "505080"]
[BlackFideId "2605767"]
[WhiteElo "2513"]
[BlackElo "1880"]
[Result "1-0"]
[Round "1"]
[TimeControl "180+1"]
[Date "2023.11.07"]
[WhiteClock "0:02:33"]
[BlackClock "0:00:00"]
[Board "175"]

1. e4 {[%clk 0:03:00]}  e5 {[%clk 0:02:59]} 2. Nc3 {[%clk 0:03:00]}  Nc6 {[%clk 0:02:59]} 3. Bc4 {[%clk 0:03:01]}  Be7 {[%clk 0:02:58]} 4. f4 {[%clk 0:03:00]}  Bc5 {[%clk 0:02:57]} 5. Nf3 {[%clk 0:03:00]}  d6 {[%clk 0:02:57]} 6. d3 {[%clk 0:03:00]}  Nf6 {[%clk 0:02:58]} 7. Ng5 {[%clk 0:02:59]}  O-O {[%clk 0:02:57]} 8. f5 {[%clk 0:03:00]}  Na5 {[%clk 0:02:55]} 9. g4 {[%clk 0:02:58]}  Nxc4 {[%clk 0:02:54]} 10. dxc4 {[%clk 0:02:58]}  h6 {[%clk 0:02:54]} 11. h4 {[%clk 0:02:56]}  c6 {[%clk 0:02:42]} 12. Qf3 {[%clk 0:02:55]}  d5 {[%clk 0:02:35]} 13. cxd5 {[%clk 0:02:56]}  cxd5 {[%clk 0:02:34]} 14. exd5 {[%clk 0:02:55]}  e4 {[%clk 0:02:28]} 15. Ngxe4 {[%clk 0:02:55]}  Nxe4 {[%clk 0:02:22]} 16. Nxe4 {[%clk 0:02:56]}  Re8 {[%clk 0:02:22]} 17. Kf1 {[%clk 0:02:54]}  Qe7 {[%clk 0:02:04]} 18. Nf2 {[%clk 0:02:53]}  Bxf2 {[%clk 0:01:51]} 19. Kxf2 {[%clk 0:02:54]}  Qc5+ {[%clk 0:01:50]} 20. Kg2 {[%clk 0:02:53]}  Qxc2+ {[%clk 0:01:49]} 21. Kg3 {[%clk 0:02:54]}  Re2 {[%clk 0:01:17]} 22. Bf4 {[%clk 0:02:49]}  Bd7 {[%clk 0:01:13]} 23. Rac1 {[%clk 0:02:44]}  Qxb2 {[%clk 0:01:10]} 24. Rc7 {[%clk 0:02:45]}  Ba4 {[%clk 0:00:32]} 25. f6 {[%clk 0:02:44]}  g6 {[%clk 0:00:00]} 26. Re7 {[%clk 0:02:33]} 1-0


[Site "https://www.chess.com"]

[Event "Titled Tuesday Blitz November 07 Late 2023"]
[White "Vargas, Mauricio"]
[Black "Urbina Perez, Juan Antonio"]
[WhiteFideId "4404572"]
[BlackFideId "2217368"]
[WhiteElo "1854"]
[BlackElo "2513"]
[Result "0-1"]
[Round "1"]
[TimeControl "180+1"]
[Date "2023.11.07"]
[WhiteClock "0:00:00"]
[BlackClock "0:01:45"]
[Board "176"]

1. e4 {[%clk 0:02:56]}  e5 {[%clk 0:02:57]} 2. Nf3 {[%clk 0:02:45]}  Nf6 {[%clk 0:02:55]} 3. Nc3 {[%clk 0:02:33]}  Nc6 {[%clk 0:02:54]} 4. Bc4 {[%clk 0:02:29]}  Nxe4 {[%clk 0:02:52]} 5. Nxe4 {[%clk 0:02:13]}  d5 {[%clk 0:02:51]} 6. Bxd5 {[%clk 0:02:00]}  Qxd5 {[%clk 0:02:52]} 7. d3 {[%clk 0:02:00]}  Bg4 {[%clk 0:02:43]} 8. h3 {[%clk 0:01:47]}  Bh5 {[%clk 0:02:41]} 9. g4 {[%clk 0:01:47]}  Bg6 {[%clk 0:02:39]} 10. Nc3 {[%clk 0:01:42]}  Qd7 {[%clk 0:02:35]} 11. Be3 {[%clk 0:01:34]}  O-O-O {[%clk 0:02:35]} 12. Qe2 {[%clk 0:01:28]}  h5 {[%clk 0:02:21]} 13. g5 {[%clk 0:01:16]}  h4 {[%clk 0:02:15]} 14. O-O-O {[%clk 0:01:15]}  Bh5 {[%clk 0:02:10]} 15. Bd2 {[%clk 0:00:55]}  Nd4 {[%clk 0:02:03]} 16. Qxe5 {[%clk 0:00:14]}  Nxf3 {[%clk 0:01:58]} 17. Qf4 {[%clk 0:00:11]}  Bd6 {[%clk 0:01:55]} 18. Qc4 {[%clk 0:00:05]}  Nxd2 {[%clk 0:01:50]} 19. Rxd2 {[%clk 0:00:04]}  a6 {[%clk 0:01:49]} 20. Nd5 {[%clk 0:00:00]}  Kb8 {[%clk 0:01:45]} 0-1


[Site "https://www.chess.com"]

[Event "Titled Tuesday Blitz November 07 Late 2023"]
[White "Tokhirjonova, Gulrukhbegim"]
[Black "Carlsen, Magnus"]
[WhiteFideId "14203626"]
[BlackFideId "1503014"]
[WhiteElo "2656"]
[BlackElo "3268"]
[Result "0-1"]
[Round "2"]
[TimeControl "180+1"]
[Date "2023.11.07"]
[WhiteClock "0:00:00"]
[BlackClock "0:00:35"]
[Board "1"]

1. e4 {[%clk 0:02:59]}  c5 {[%clk 0:02:55]} 2. Nf3 {[%clk 0:02:58]}  b6 {[%clk 0:02:50]} 3. d4 {[%clk 0:02:58]}  cxd4 {[%clk 0:02:51]} 4. Nxd4 {[%clk 0:02:58]}  Bb7 {[%clk 0:02:51]} 5. Nc3 {[%clk 0:02:58]}  a6 {[%clk 0:02:52]} 6. f4 {[%clk 0:02:58]}  b5 {[%clk 0:02:49]} 7. Bd3 {[%clk 0:02:54]}  Nf6 {[%clk 0:02:40]} 8. e5 {[%clk 0:02:37]}  b4 {[%clk 0:02:33]} 9. Na4 {[%clk 0:01:57]}  Nd5 {[%clk 0:02:21]} 10. O-O {[%clk 0:01:56]}  e6 {[%clk 0:02:21]} 11. c4 {[%clk 0:01:54]}  bxc3 {[%clk 0:02:19]} 12. bxc3 {[%clk 0:01:54]}  Nc6 {[%clk 0:02:20]} 13. Rb1 {[%clk 0:01:50]}  Rb8 {[%clk 0:02:18]} 14. Nf3 {[%clk 0:01:25]}  g6 {[%clk 0:01:51]} 15. Qe2 {[%clk 0:01:22]}  Qa5 {[%clk 0:01:33]} 16. Qc2 {[%clk 0:00:57]}  Be7 {[%clk 0:01:30]} 17. Bd2 {[%clk 0:00:56]}  O-O {[%clk 0:01:30]} 18. Ng5 {[%clk 0:00:22]}  Bxg5 {[%clk 0:01:21]} 19. fxg5 {[%clk 0:00:22]}  Qc7 {[%clk 0:01:19]} 20. c4 {[%clk 0:00:17]}  Nde7 {[%clk 0:01:19]} 21. Bf4 {[%clk 0:00:14]}  Nxe5 {[%clk 0:01:13]} 22. Rbe1 {[%clk 0:00:11]}  d6 {[%clk 0:00:54]} 23. c5 {[%clk 0:00:10]}  Qc6 {[%clk 0:00:44]} 24. Be4 {[%clk 0:00:07]}  d5 {[%clk 0:00:35]} 25. Bxe5 {[%clk 0:00:07]}  dxe4 {[%clk 0:00:36]} 26. Bxb8 {[%clk 0:00:06]}  Rxb8 {[%clk 0:00:36]} 27. Nb6 {[%clk 0:00:00]}  Nf5 {[%clk 0:00:35]} 0-1


[Site "https://www.chess.com"]

[Event "Titled Tuesday Blitz November 07 Late 2023"]
[White "Jacobson, Brandon"]
[Black "Shuvalova, Polina"]
[WhiteFideId "30901561"]
[BlackFideId "24171760"]
[WhiteElo "3129"]
[BlackElo "2653"]
[Result "1-0"]
[Round "2"]
[TimeControl "180+1"]
[Date "2023.11.07"]
[WhiteClock "0:01:16"]
[BlackClock "0:00:21"]
[Board "2"]

1. Nf3 {[%clk 0:03:00]}  c5 {[%clk 0:02:55]} 2. c4 {[%clk 0:03:00]}  b6 {[%clk 0:02:54]} 3. g3 {[%clk 0:03:00]}  Bb7 {[%clk 0:02:55]} 4. Bg2 {[%clk 0:03:00]}  g6 {[%clk 0:02:55]} 5. O-O {[%clk 0:02:59]}  Bg7 {[%clk 0:02:55]} 6. Nc3 {[%clk 0:02:59]}  Nf6 {[%clk 0:02:54]} 7. d4 {[%clk 0:02:59]}  cxd4 {[%clk 0:02:54]} 8. Qxd4 {[%clk 0:03:00]}  O-O {[%clk 0:02:52]} 9. Rd1 {[%clk 0:03:01]}  d6 {[%clk 0:02:52]} 10. Qh4 {[%clk 0:02:59]}  Nbd7 {[%clk 0:02:50]} 11. Be3 {[%clk 0:02:51]}  Rc8 {[%clk 0:02:49]} 12. Rac1 {[%clk 0:02:50]}  h5 {[%clk 0:02:46]} 13. Bh3 {[%clk 0:02:45]}  Ng4 {[%clk 0:02:38]} 14. Bxg4 {[%clk 0:02:11]}  Rxc4 {[%clk 0:02:33]} 15. h3 {[%clk 0:01:56]}  hxg4 {[%clk 0:02:30]} 16. hxg4 {[%clk 0:01:56]}  Bxf3 {[%clk 0:02:10]} 17. exf3 {[%clk 0:01:56]}  Ne5 {[%clk 0:02:11]} 18. Kg2 {[%clk 0:01:56]}  Qa8 {[%clk 0:02:10]} 19. Nd5 {[%clk 0:01:56]}  Re8 {[%clk 0:01:54]} 20. Rxc4 {[%clk 0:01:42]}  Nxc4 {[%clk 0:01:54]} 21. Bh6 {[%clk 0:01:40]}  Qb7 {[%clk 0:01:45]} 22. Bxg7 {[%clk 0:01:21]}  Kxg7 {[%clk 0:01:43]} 23. g5 {[%clk 0:01:22]}  Qc8 {[%clk 0:00:31]} 24. Qh6+ {[%clk 0:01:16]}  Kg8 {[%clk 0:00:21]} 25. Rh1 {[%clk 0:01:16]} 1-0


[Site "https://www.chess.com"]

[Event "Titled Tuesday Blitz November 07 Late 2023"]
[White "Duda, Jan-Krzysztof"]
[Black "Chor, Kevin"]
[WhiteFideId "1170546"]
[BlackFideId "2090740"]
[WhiteElo "3081"]
[BlackElo "2649"]
[Result "1-0"]
[Round "2"]
[TimeControl "180+1"]
[Date "2023.11.07"]
[WhiteClock "0:01:10"]
[BlackClock "0:00:05"]
[Board "4"]

1. b3 {[%clk 0:03:00]}  Nf6 {[%clk 0:02:58]} 2. Bb2 {[%clk 0:03:01]}  e6 {[%clk 0:02:57]} 3. e3 {[%clk 0:03:02]}  Be7 {[%clk 0:02:57]} 4. g4 {[%clk 0:03:01]}  h6 {[%clk 0:02:39]} 5. Nf3 {[%clk 0:03:00]}  d6 {[%clk 0:02:34]} 6. Rg1 {[%clk 0:02:57]}  e5 {[%clk 0:02:33]} 7. h3 {[%clk 0:02:56]}  Nc6 {[%clk 0:02:29]} 8. c4 {[%clk 0:02:56]}  e4 {[%clk 0:02:09]} 9. Nh2 {[%clk 0:02:48]}  Be6 {[%clk 0:02:06]} 10. Nc3 {[%clk 0:02:47]}  d5 {[%clk 0:01:33]} 11. cxd5 {[%clk 0:02:47]}  Bxd5 {[%clk 0:01:34]} 12. g5 {[%clk 0:02:33]}  hxg5 {[%clk 0:01:27]} 13. Rxg5 {[%clk 0:02:34]}  Be6 {[%clk 0:01:19]} 14. Rxg7 {[%clk 0:02:26]}  Bd6 {[%clk 0:01:19]} 15. f4 {[%clk 0:02:06]}  exf3 {[%clk 0:01:11]} 16. Nxf3 {[%clk 0:02:04]}  Nh5 {[%clk 0:01:11]} 17. Rg5 {[%clk 0:02:01]}  Bg3+ {[%clk 0:01:07]} 18. Ke2 {[%clk 0:02:01]}  f6 {[%clk 0:01:00]} 19. Ne4 {[%clk 0:01:58]}  fxg5 {[%clk 0:00:57]} 20. Bxh8 {[%clk 0:01:58]}  g4 {[%clk 0:00:57]} 21. Nfg5 {[%clk 0:01:55]}  Ne5 {[%clk 0:00:49]} 22. d4 {[%clk 0:01:51]}  Ng6 {[%clk 0:00:49]} 23. Nxe6 {[%clk 0:01:49]}  Qd7 {[%clk 0:00:42]} 24. hxg4 {[%clk 0:01:48]}  Qxe6 {[%clk 0:00:34]} 25. gxh5 {[%clk 0:01:43]}  Qxe4 {[%clk 0:00:21]} 26. hxg6 {[%clk 0:01:39]}  O-O-O {[%clk 0:00:21]} 27. Bf6 {[%clk 0:01:28]}  Re8 {[%clk 0:00:17]} 28. Qd3 {[%clk 0:01:27]}  Qg4+ {[%clk 0:00:16]} 29. Kd2 {[%clk 0:01:27]}  Rxe3 {[%clk 0:00:10]} 30. Qxe3 {[%clk 0:01:17]}  Bf4 {[%clk 0:00:10]} 31. g7 {[%clk 0:01:18]}  Bxe3+ {[%clk 0:00:07]} 32. Kxe3 {[%clk 0:01:19]}  Qg3+ {[%clk 0:00:08]} 33. Kd2 {[%clk 0:01:14]}  Qf4+ {[%clk 0:00:08]} 34. Kc3 {[%clk 0:01:12]}  Qf3+ {[%clk 0:00:07]} 35. Bd3 {[%clk 0:01:11]}  Qc6+ {[%clk 0:00:08]} 36. Bc4 {[%clk 0:01:11]}  Qf3+ {[%clk 0:00:08]} 37. Kb4 {[%clk 0:01:10]}  a5+ {[%clk 0:00:05]} 38. Ka3 {[%clk 0:01:10]} 1-0


[Site "https://www.chess.com"]

[Event "Titled Tuesday Blitz November 07 Late 2023"]
[White "Hakobyan, Aram"]
[Black "Thomforde-Toates, Noah"]
[WhiteFideId "13306677"]
[BlackFideId "30951992"]
[WhiteElo "3065"]
[BlackElo "2647"]
[Result "1-0"]
[Round "2"]
[TimeControl "180+1"]
[Date "2023.11.07"]
[WhiteClock "0:00:36"]
[BlackClock "0:01:13"]
[Board "6"]

1. d4 {[%clk 0:03:00]}  Nf6 {[%clk 0:03:00]} 2. c4 {[%clk 0:02:58]}  g6 {[%clk 0:03:00]} 3. Nc3 {[%clk 0:02:50]}  Bg7 {[%clk 0:03:00]} 4. e4 {[%clk 0:02:46]}  d6 {[%clk 0:02:56]} 5. Be2 {[%clk 0:02:46]}  O-O {[%clk 0:02:56]} 6. Nf3 {[%clk 0:02:46]}  e5 {[%clk 0:02:56]} 7. O-O {[%clk 0:02:46]}  exd4 {[%clk 0:02:56]} 8. Nxd4 {[%clk 0:02:46]}  Re8 {[%clk 0:02:57]} 9. f3 {[%clk 0:02:45]}  c6 {[%clk 0:02:57]} 10. Kh1 {[%clk 0:02:43]}  Nbd7 {[%clk 0:02:58]} 11. Bf4 {[%clk 0:02:43]}  Nh5 {[%clk 0:02:57]} 12. Bxd6 {[%clk 0:02:25]}  Qf6 {[%clk 0:02:57]} 13. Nb3 {[%clk 0:02:19]}  Nf4 {[%clk 0:02:57]} 14. Bxf4 {[%clk 0:01:41]}  Qxf4 {[%clk 0:02:56]} 15. g3 {[%clk 0:01:35]}  Qe3 {[%clk 0:02:56]} 16. Qd3 {[%clk 0:01:26]}  Qxd3 {[%clk 0:02:53]} 17. Bxd3 {[%clk 0:01:27]}  Bxc3 {[%clk 0:02:49]} 18. bxc3 {[%clk 0:01:26]}  Ne5 {[%clk 0:02:49]} 19. Be2 {[%clk 0:01:24]}  Be6 {[%clk 0:02:49]} 20. c5 {[%clk 0:01:11]}  Red8 {[%clk 0:02:44]} 21. f4 {[%clk 0:01:06]}  Nd7 {[%clk 0:02:44]} 22. c4 {[%clk 0:00:58]}  f6 {[%clk 0:02:36]} 23. Rfd1 {[%clk 0:00:54]}  a5 {[%clk 0:02:33]} 24. a4 {[%clk 0:00:51]}  Kf7 {[%clk 0:02:21]} 25. Rd6 {[%clk 0:00:43]}  Ke7 {[%clk 0:02:21]} 26. Rad1 {[%clk 0:00:39]}  f5 {[%clk 0:02:17]} 27. e5 {[%clk 0:00:37]}  b6 {[%clk 0:01:29]} 28. Nd4 {[%clk 0:00:37]}  Nxc5 {[%clk 0:01:17]} 29. Nxc6+ {[%clk 0:00:36]}  Kf7 {[%clk 0:01:16]} 30. Nxd8+ {[%clk 0:00:37]}  Ke7 {[%clk 0:01:16]} 31. Nxe6 {[%clk 0:00:36]}  Nxe6 {[%clk 0:01:15]} 32. Rxb6 {[%clk 0:00:36]}  Rc8 {[%clk 0:01:15]} 33. Bf3 {[%clk 0:00:35]}  Rxc4 {[%clk 0:01:13]} 34. Rxe6+ {[%clk 0:00:35]}  Kxe6 {[%clk 0:01:13]} 35. Bd5+ {[%clk 0:00:36]} 1-0


[Site "https://www.chess.com"]